bitfinex/quotes_BTCUSD_20230114
["timestamp","ask_amount","ask_price","bid_price","bid_amount"]
[1673692786320,0.19072595,20400.0,20396.0,0.00866267]
[1673692786553,0.980352,20401.0,20396.0,0.00866267]
[1673692786554,1.17117395,20399.0,20396.0,0.18389795]
[1673692786788,1.17117395,20399.0,20396.0,0.16609473]
[1673692787060,0.980448,20399.0,20398.0,0.119]
[1673692787540,1.12803294,20399.0,20398.0,0.119]
[1673692787774,1.080448,20399.0,20398.0,0.119]
[1673692788028,1.280448,20399.0,20398.0,0.119]
[1673692788306,1.13877123,20399.0,20398.0,0.119]
[1673692788819,1.13877123,20399.0,20396.0,0.00856586]
[1673692789064,1.13877123,20399.0,20398.0,0.125]
[1673692789555,0.64854723,20399.0,20398.0,0.06640659]
[1673692790009,0.64854723,20399.0,20398.0,0.01335659]
[1673692790251,0.64854723,20399.0,20397.0,0.17116956]
[1673692790512,0.64854723,20399.0,20398.0,0.125]
[1673692791738,0.64854723,20399.0,20396.0,0.20883021]
[1673692792274,0.64854723,20399.0,20398.0,0.125]
[1673692792514,0.64854723,20399.0,20396.0,0.20883021]
[1673692792766,0.1417188,20398.0,20396.0,0.34883021]
[1673692793016,0.1417188,20398.0,20396.0,0.20883021]
[1673692793514,0.690199,20400.0,20396.0,0.04031515]
[1673692793754,0.0117736,20411.0,20397.0,0.25789113]
[1673692793755,0.30817947,20404.0,20397.0,0.25789113]
[1673692794002,0.15823504,20403.0,20398.0,0.29590834]
[1673692794271,0.15823504,20403.0,20399.0,0.40678234]
[1673692794510,0.49009,20405.0,20400.0,0.43461077]
[1673692794770,0.49009,20405.0,20401.0,0.07579134]
[1673692794771,0.15681764,20404.0,20401.0,0.07579134]
[1673692795260,0.17572734,20403.0,20401.0,0.07579134]
[1673692795521,6e-05,20404.0,20400.0,0.14772443]
[1673692795762,0.1,20403.0,20402.0,0.19724501]
[1673692796494,0.1,20403.0,20400.0,0.13872443]
[1673692796739,0.1,20403.0,20400.0,0.33621078]
[1673692796999,0.004,20402.0,20400.0,0.13872443]
[1673692797266,0.004,20402.0,20401.0,0.07224304]
[1673692797490,0.004,20402.0,20401.0,0.39478804]
[1673692797491,0.006,20402.0,20401.0,0.39478804]
[1673692797795,0.006,20402.0,20401.0,0.88496004]
[1673692798014,0.009,20402.0,20401.0,0.88496004]
[1673692798269,0.006,20402.0,20401.0,0.9659526]
[1673692798504,0.006,20402.0,20401.0,0.961217]
[1673692798761,0.06925711,20403.0,20401.0,0.961217]
[1673692798997,0.06925711,20403.0,20402.0,0.54091524]
[1673692799271,0.14523503,20408.0,20403.0,0.1]
[1673692799522,0.14523503,20408.0,20404.0,1.38696034]
[1673692799763,0.50378853,20409.0,20405.0,0.29573434]
[1673692799764,0.14523503,20409.0,20405.0,0.29573434]
[1673692800010,0.30899463,20409.0,20406.0,0.39825334]
[1673692800280,0.30899463,20409.0,20405.0,0.07579134]
[1673692800281,0.21672535,20408.0,20405.0,0.07579134]
[1673692800512,0.140758,20405.0,20402.0,0.32372858]
[1673692800773,0.19072595,20405.0,20402.0,0.32372858]
[1673692801009,0.18070514,20406.0,20403.0,0.2566175]
[1673692801509,0.18070514,20406.0,20405.0,0.14]
[1673692801753,0.18070514,20406.0,20403.0,0.2566175]
[1673692802009,0.18070514,20406.0,20403.0,0.2557965]
[1673692802255,0.18070514,20406.0,20404.0,0.05399364]
[1673692802510,0.2967688,20407.0,20404.0,0.05399364]
[1673692803013,0.15981212,20406.0,20404.0,0.05399364]
[1673692803543,0.85196838,20408.0,20404.0,0.05399364]
[1673692803776,0.2885675,20408.0,20405.0,0.30565548]
[1673692804275,0.2885675,20408.0,20405.0,0.22986414]
[1673692804276,0.14333247,20408.0,20405.0,0.22986414]
[1673692804536,0.86265185,20410.0,20405.0,0.22986414]
[1673692804774,0.15767433,20408.0,20406.0,0.15318692]
[1673692805029,0.6459265,20410.0,20406.0,0.07739558]
[1673692805030,0.18694746,20407.0,20406.0,0.07739558]
[1673692805259,0.18694746,20407.0,20405.0,0.14]
[1673692805543,0.16975902,20406.0,20405.0,0.14]
[1673692806235,0.16975902,20406.0,20405.0,0.28]
[1673692806473,0.16975902,20406.0,20404.0,0.16857503]
[1673692806713,0.16975902,20406.0,20403.0,1.3491]
[1673692806714,0.85053997,20406.0,20405.0,0.14]
[1673692806965,0.85053997,20406.0,20403.0,0.01]
[1673692806966,0.65981402,20406.0,20403.0,0.01]
[1673692807200,0.65981402,20406.0,20405.0,0.14]
[1673692807201,0.995775,20406.0,20405.0,0.14]
[1673692807443,0.80504905,20406.0,20403.0,0.01]
[1673692808212,0.65981402,20406.0,20403.0,0.01]
[1673692808457,0.66381402,20406.0,20403.0,0.18402456]
[1673692808683,0.14399101,20405.0,20403.0,0.18402456]
[1673692809184,0.14399101,20405.0,20403.0,0.23602456]
[1673692809489,0.14399101,20405.0,20403.0,0.03360246]
[1673692809715,0.14399101,20405.0,20403.0,0.062]
[1673692809965,0.490055,20406.0,20403.0,0.062]
[1673692810207,0.1,20404.0,20403.0,0.062]
[1673692810445,0.590099,20404.0,20403.0,0.062]
[1673692810979,0.490099,20404.0,20403.0,0.01]
[1673692811230,0.15136447,20404.0,20401.0,0.14571497]
[1673692811476,0.15136447,20404.0,20401.0,0.28444547]
[1673692811729,0.15819244,20403.0,20401.0,0.28415064]
[1673692811949,0.15819244,20403.0,20401.0,0.1387305]
[1673692812444,0.15819244,20403.0,20401.0,0.2787305]
[1673692812684,0.15819244,20403.0,20401.0,0.0915725]
[1673692812933,0.15819244,20403.0,20401.0,0.14]
[1673692814943,0.15812622,20403.0,20401.0,0.14]
[1673692815655,0.64826122,20403.0,20401.0,0.14]
[1673692816405,0.79349625,20403.0,20401.0,0.14]
[1673692816637,0.64826122,20403.0,20401.0,0.14]
[1673692816914,0.147935,20402.0,20401.0,0.14]
[1673692817168,0.63538303,20402.0,20401.0,0.14]
[1673692817411,0.63538303,20402.0,20401.0,0.08231586]
[1673692817412,1.39554191,20402.0,20401.0,0.08231586]
[1673692817646,1.12522308,20402.0,20401.0,0.08231586]
[1673692817889,1.20044374,20402.0,20401.0,0.08231586]
[1673692818145,1.67764543,20402.0,20397.0,0.00019]
[1673692818399,0.14545102,20399.0,20397.0,0.00019]
[1673692818631,0.980488,20398.0,20397.0,0.00019]
[1673692818874,1.080488,20398.0,20397.0,0.00019]
[1673692819391,0.66637786,20398.0,20397.0,0.00719]
[1673692819616,0.66637786,20398.0,20396.0,0.00856586]
[1673692819886,0.73837786,20398.0,20397.0,0.007]
[1673692820606,0.24813386,20398.0,20397.0,0.06005]
[1673692820849,0.24813386,20398.0,20397.0,0.0852584]
[1673692821365,0.24813386,20398.0,20397.0,0.0322084]
[1673692821857,0.24813386,20398.0,20397.0,0.007]
[1673692822385,0.73837786,20398.0,20397.0,0.007]
[1673692826878,0.24813386,20398.0,20397.0,0.007]
[1673692827109,0.24813386,20398.0,20397.0,0.06005]
[1673692827110,0.072,20398.0,20397.0,0.06005]
[1673692827381,0.072,20398.0,20397.0,0.25967694]
[1673692827622,0.072,20398.0,20397.0,0.28736749]
[1673692827880,0.072,20398.0,20397.0,0.007]
[1673692828121,0.70134901,20398.0,20397.0,0.007]
[1673692828370,0.562244,20398.0,20397.0,0.007]
[1673692828643,0.70002678,20398.0,20397.0,0.007]
[1673692829117,0.8454778,20398.0,20397.0,0.007]
[1673692829367,0.70002678,20398.0,20397.0,0.007]
[1673692830164,0.072,20398.0,20397.0,0.06855]
[1673692830359,0.072,20398.0,20397.0,0.21400932]
[1673692830612,0.072,20398.0,20397.0,0.06005]
[1673692830866,0.49016,20402.0,20397.0,0.45838634]
[1673692831151,0.15663945,20404.0,20398.0,0.53899334]
[1673692831374,0.18342813,20403.0,20399.0,0.39829934]
[1673692831608,0.490084,20405.0,20400.0,0.17068583]
[1673692831609,0.16515732,20402.0,20400.0,0.17068583]
[1673692831843,0.16515732,20402.0,20400.0,0.0085]
[1673692832120,0.16815732,20402.0,20400.0,0.0085]
[1673692832368,0.46362755,20404.0,20400.0,0.0085]
[1673692832616,0.17545227,20403.0,20400.0,0.08429134]
[1673692832874,0.27245227,20403.0,20400.0,0.0085]
[1673692833125,0.003,20402.0,20400.0,0.139]
[1673692833376,0.15231898,20401.0,20400.0,0.139]
[1673692834070,0.15231898,20401.0,20398.0,0.17835345]
[1673692834327,0.34304493,20401.0,20400.0,0.139]
[1673692834592,0.15231898,20401.0,20400.0,0.139]
[1673692834810,0.15231898,20401.0,20398.0,0.17835345]
[1673692835047,0.15531898,20401.0,20400.0,0.139]
[1673692835561,0.15231898,20401.0,20398.0,0.17835345]
[1673692836048,0.15231898,20401.0,20398.0,0.31735345]
[1673692836049,0.15531898,20401.0,20398.0,0.31735345]
[1673692836310,0.15531898,20401.0,20398.0,0.139]
[1673692836548,0.15531898,20401.0,20398.0,0.44640283]
[1673692836775,0.99921857,20403.0,20399.0,0.07579134]
[1673692836776,0.63559102,20403.0,20399.0,0.07579134]
[1673692837022,0.003,20401.0,20400.0,0.21479134]
[1673692837286,0.14250244,20403.0,20400.0,0.10519387]
[1673692837523,1.36790827,20405.0,20400.0,0.07579134]
[1673692837524,0.003,20401.0,20400.0,0.07579134]
[1673692837758,0.65965474,20405.0,20400.0,0.322545]
[1673692838014,0.16420372,20405.0,20401.0,0.53000534]
[1673692838275,0.14545102,20406.0,20402.0,0.39833634]
[1673692838496,0.36362755,20407.0,20403.0,0.18806117]
[1673692838980,0.14545102,20406.0,20403.0,0.18806117]
[1673692839247,0.14545102,20406.0,20403.0,0.11226983]
[1673692839482,0.29908121,20406.0,20403.0,0.11226983]
[1673692839711,0.14545102,20406.0,20403.0,0.11226983]
[1673692839965,0.36362755,20407.0,20404.0,0.01122698]
[1673692840451,0.14545102,20407.0,20405.0,0.14914663]
[1673692841470,0.18172845,20406.0,20404.0,0.01122698]
[1673692841682,0.003,20405.0,20403.0,0.28174516]
[1673692841931,0.18172845,20406.0,20403.0,0.28174516]
[1673692841932,0.3724544,20406.0,20403.0,0.28174516]
[1673692842201,0.18172845,20406.0,20404.0,0.17912888]
[1673692842692,0.033,20405.0,20402.0,0.1854678]
[1673692842973,0.19072595,20405.0,20403.0,0.18751983]
[1673692843228,0.22072845,20406.0,20404.0,0.007]
[1673692843446,0.18172845,20406.0,20403.0,0.18502088]
[1673692843686,0.17396503,20405.0,20403.0,0.18502088]
[1673692843923,0.001,20405.0,20404.0,0.1]
[1673692844191,0.001,20405.0,20404.0,0.422545]
[1673692844696,0.18783667,20408.0,20404.0,0.52483364]
[1673692844956,0.18783667,20408.0,20405.0,0.219896]
[1673692845228,0.37436002,20410.0,20404.0,0.10228864]
[1673692845229,0.13845649,20406.0,20404.0,0.10228864]
[1673692845451,0.13598322,20408.0,20404.0,0.24228864]
[1673692845682,0.13598322,20408.0,20404.0,0.17807998]
[1673692845939,0.13598322,20408.0,20405.0,0.23333366]
[1673692846169,0.13598322,20408.0,20405.0,0.40806085]
[1673692846428,0.13598322,20408.0,20405.0,0.26806085]
[1673692846674,0.14545102,20409.0,20405.0,0.26806085]
[1673692846932,0.14545102,20409.0,20406.0,0.04461408]
[1673692846933,0.16380861,20409.0,20406.0,0.04461408]
[1673692847186,0.16380861,20409.0,20404.0,0.10228864]
[1673692847187,0.146254,20408.0,20404.0,0.10228864]
[1673692847425,0.48243097,20408.0,20403.0,0.20090017]
[1673692847706,0.48243097,20408.0,20405.0,0.14]
[1673692847707,0.19072595,20407.0,20405.0,0.14]
[1673692847935,0.73545502,20408.0,20403.0,0.20090017]
[1673692848160,0.92718097,20408.0,20404.0,0.139]
[1673692848429,1.30312945,20408.0,20404.0,0.03400902]
[1673692848674,0.1,20406.0,20405.0,0.14]
[1673692848896,0.17369663,20407.0,20402.0,0.1663271]
[1673692848897,0.82064168,20407.0,20402.0,0.1663271]
[1673692849156,0.68077695,20406.0,20404.0,0.139]
[1673692849398,0.68077695,20406.0,20402.0,0.1663271]
[1673692849399,0.490051,20406.0,20402.0,0.24211844]
[1673692849636,0.68077695,20406.0,20402.0,0.47207734]
[1673692849886,0.68177695,20406.0,20405.0,0.14]
[1673692850118,0.001,20406.0,20405.0,0.14]
[1673692850610,0.001,20406.0,20405.0,0.31595288]
[1673692850841,0.98961789,20409.0,20405.0,0.17595288]
[1673692851100,0.87144136,20409.0,20405.0,0.27933951]
[1673692851350,0.18745489,20407.0,20405.0,0.27933951]
[1673692851569,0.18745489,20407.0,20405.0,0.20354817]
[1673692851570,0.001,20406.0,20405.0,0.20354817]
[1673692851820,0.001,20406.0,20405.0,0.17595288]
[1673692852050,0.001,20406.0,20405.0,0.30927152]
[1673692852322,0.15140819,20408.0,20405.0,0.30022697]
[1673692852606,0.15140819,20408.0,20405.0,0.16022697]
[1673692852841,0.001,20407.0,20406.0,0.18763494]
[1673692854294,0.15140819,20408.0,20406.0,0.18823544]
[1673692854512,0.15140819,20408.0,20406.0,0.18763494]
[1673692854768,0.15140819,20408.0,20405.0,0.1140656]
[1673692855029,0.1657885,20407.0,20406.0,0.141]
[1673692855246,0.1647885,20407.0,20405.0,0.1140656]
[1673692855522,0.1647885,20407.0,20406.0,0.16723468]
[1673692855759,0.1647885,20407.0,20406.0,0.02623468]
[1673692856035,0.1647885,20407.0,20405.0,0.30620957]
[1673692856552,0.1647885,20407.0,20405.0,0.19214397]
[1673692856814,0.68175795,20407.0,20406.0,0.141]
[1673692857068,0.06738795,20405.0,20402.0,0.00019]
[1673692857300,0.06738795,20405.0,20400.0,0.16996758]
[1673692857301,0.7482079,20405.0,20400.0,0.16996758]
[1673692857555,0.7482079,20405.0,20401.0,0.18539619]
[1673692857556,0.19072595,20404.0,20401.0,0.18539619]
[1673692858062,0.21047587,20405.0,20401.0,0.18539619]
[1673692858348,0.21047587,20405.0,20404.0,0.15721386]
[1673692858349,0.06938795,20405.0,20404.0,0.15721386]
[1673692858583,0.06738795,20405.0,20404.0,0.17293525]
[1673692860042,0.06938795,20405.0,20404.0,0.15721386]
[1673692860283,0.06738795,20405.0,20404.0,0.15721386]
[1673692860544,0.06738795,20405.0,20404.0,0.02]
[1673692860789,0.06738795,20405.0,20404.0,0.07305]
[1673692862534,0.06738795,20405.0,20404.0,0.26471057]
[1673692863253,0.06738795,20405.0,20404.0,0.38920853]
[1673692863993,0.06738795,20405.0,20404.0,0.26471057]
[1673692864261,0.06738795,20405.0,20404.0,0.21166057]
[1673692864502,0.06738795,20405.0,20404.0,0.02]
[1673692864503,0.7481889,20405.0,20404.0,0.02]
[1673692864748,0.70291397,20405.0,20404.0,0.02]
[1673692864980,0.80291397,20405.0,20404.0,0.02]
[1673692865218,1.10291397,20405.0,20404.0,0.02]
[1673692866233,1.3210905,20405.0,20404.0,0.02]
[1673692866461,0.9210905,20405.0,20404.0,0.02]
[1673692866715,1.3210905,20405.0,20404.0,0.02]
[1673692867177,1.46654152,20405.0,20404.0,0.02]
[1673692867415,1.6197577,20405.0,20404.0,0.02]
[1673692867718,1.32072109,20405.0,20404.0,0.02]
[1673692867967,1.32072109,20405.0,20404.0,0.01993055]
[1673692868458,1.24836499,20405.0,20404.0,0.01993055]
[1673692869196,1.46604843,20405.0,20404.0,0.01993055]
[1673692869447,1.46604843,20405.0,20404.0,0.00658707]
[1673692869448,2.73082274,20405.0,20404.0,0.00658707]
[1673692869687,3.25611061,20405.0,20404.0,0.00658707]
[1673692869937,3.25611061,20405.0,20404.0,7.07e-06]
[1673692869938,3.21312082,20405.0,20404.0,7.07e-06]
[1673692870184,0.00498184,20403.0,20397.0,0.00887101]
[1673692870427,0.1452129,20399.0,20397.0,0.00887101]
[1673692870665,0.78096995,20398.0,20397.0,0.00887101]
[1673692870918,0.99878557,20398.0,20397.0,0.00887101]
[1673692871176,0.88858851,20398.0,20397.0,0.01987101]
[1673692871438,0.88858851,20398.0,20397.0,0.00887101]
[1673692871720,0.79378851,20398.0,20397.0,0.01187101]
[1673692871958,2.55431505,20398.0,20394.0,0.00887101]
[1673692872206,0.08,20395.0,20394.0,0.00887101]
[1673692872440,1.25135795,20395.0,20394.0,0.00887101]
[1673692872684,1.080632,20395.0,20394.0,0.00887101]
[1673692872913,1.63639121,20395.0,20394.0,0.00887101]
[1673692873155,1.460832,20395.0,20394.0,0.00887101]
[1673692873403,1.164832,20395.0,20394.0,0.14787101]
[1673692873687,1.34947842,20395.0,20394.0,0.00887101]
[1673692873912,1.24383727,20395.0,20394.0,0.08887101]
[1673692874146,0.75352127,20395.0,20394.0,0.08887101]
[1673692874394,0.79952127,20395.0,20394.0,0.09987101]
[1673692874889,0.75052127,20395.0,20394.0,0.00887101]
[1673692875373,1.16707571,20395.0,20394.0,0.00887101]
[1673692875621,1.07098366,20395.0,20394.0,0.01187101]
[1673692875846,1.07098366,20395.0,20394.0,0.00887101]
[1673692875847,1.02398366,20395.0,20394.0,0.00887101]
[1673692876084,1.16707571,20395.0,20394.0,0.00887101]
[1673692876347,1.21307571,20395.0,20394.0,0.01887101]
[1673692876610,1.6442774,20395.0,20394.0,0.00887101]
[1673692876860,1.6902774,20395.0,20394.0,0.01987101]
[1673692877105,1.8031074,20395.0,20394.0,0.01569634]
[1673692877367,2.05112451,20395.0,20394.0,0.01569634]
[1673692877673,1.79108553,20395.0,20394.0,0.01569634]
[1673692877887,1.49108553,20395.0,20394.0,0.01569634]
[1673692878627,1.60654769,20395.0,20394.0,0.01569634]
[1673692879149,1.78146626,20395.0,20394.0,0.01569634]
[1673692880141,1.78146626,20395.0,20394.0,0.01069634]
[1673692880412,1.48000397,20395.0,20394.0,0.01069634]
[1673692880886,1.57391769,20395.0,20394.0,0.01069634]
[1673692881394,1.27391769,20395.0,20394.0,0.01069634]
[1673692881886,1.57391769,20395.0,20394.0,0.01069634]
[1673692882148,1.42217055,20395.0,20394.0,0.01069634]
[1673692882396,1.27391769,20395.0,20394.0,0.01069634]
[1673692882690,1.57391769,20395.0,20394.0,0.01069634]
[1673692883393,1.74794509,20395.0,20394.0,0.01069634]
[1673692883637,1.44794509,20395.0,20394.0,0.01069634]
[1673692884137,1.43399338,20395.0,20394.0,0.01069634]
[1673692884394,1.27391769,20395.0,20394.0,0.01069634]
[1673692884626,1.89568893,20395.0,20394.0,0.01069634]
[1673692884873,1.70822644,20395.0,20394.0,0.01069634]
[1673692885157,0.696716,20395.0,20394.0,0.13953768]
[1673692885399,0.046,20395.0,20394.0,0.28641749]
[1673692885653,0.046,20395.0,20394.0,0.16998307]
[1673692885872,0.046,20395.0,20394.0,0.59303173]
[1673692886122,0.046,20395.0,20394.0,0.88513134]
[1673692886356,0.046,20395.0,20394.0,1.05999765]
[1673692886859,0.046,20395.0,20394.0,1.02732304]
[1673692887112,0.00019,20398.0,20395.0,0.1]
[1673692887355,0.00019,20398.0,20396.0,0.22868]
[1673692887597,0.1537927,20401.0,20397.0,0.49358913]
[1673692887866,0.1537927,20401.0,20398.0,0.07579134]
[1673692888600,0.00498184,20403.0,20398.0,0.07579134]
[1673692888843,0.13994492,20403.0,20399.0,0.26970275]
[1673692889092,0.13994492,20403.0,20400.0,0.56598234]
[1673692889093,0.00498184,20403.0,20400.0,0.56598234]
[1673692889349,0.01051535,20402.0,20401.0,0.384095]
[1673692889827,0.01051535,20402.0,20401.0,0.953967]
[1673692890102,0.00561535,20402.0,20401.0,0.953967]
[1673692890311,0.00498184,20403.0,20402.0,0.1]
[1673692890562,0.00498184,20403.0,20402.0,0.798632]
[1673692891360,8.184e-05,20403.0,20402.0,0.97042334]
[1673692891599,0.06738795,20405.0,20402.0,0.97042334]
[1673692891600,0.06738795,20405.0,20402.0,1.155032]
[1673692891843,0.06738795,20405.0,20403.0,0.74893382]
[1673692892089,0.06738795,20405.0,20404.0,0.710058]
[1673692892340,0.06738795,20405.0,20404.0,0.718558]
[1673692893353,0.06738795,20405.0,20404.0,0.368459]
[1673692893631,0.06838795,20405.0,20404.0,0.368459]
[1673692894121,0.06838795,20405.0,20404.0,0.14]
[1673692894122,0.21007488,20405.0,20404.0,0.14]
[1673692894379,0.67821964,20405.0,20404.0,0.14]
[1673692894624,1.13566464,20405.0,20404.0,0.14]
[1673692895116,0.73164285,20405.0,20400.0,1.4738796]
[1673692895373,0.73164285,20405.0,20404.0,0.14]
[1673692895374,0.4332938,20405.0,20404.0,0.14]
[1673692895628,0.24156785,20405.0,20401.0,0.14303662]
[1673692895873,0.4512938,20405.0,20404.0,0.006]
[1673692896104,0.4512938,20405.0,20402.0,0.17741855]
[1673692896105,0.24156785,20405.0,20402.0,0.17741855]
[1673692896357,0.24156785,20405.0,20400.0,1.55532276]
[1673692896358,0.34156785,20405.0,20400.0,1.55532276]
[1673692896615,0.34380782,20404.0,20400.0,1.72110963]
[1673692896852,0.34380782,20404.0,20401.0,0.17250578]
[1673692897124,0.15308187,20404.0,20401.0,0.96677833]
[1673692897370,0.15308187,20404.0,20402.0,0.322545]
[1673692897615,0.15308187,20404.0,20401.0,0.96677833]
[1673692897873,0.00019,20406.0,20402.0,0.16027363]
[1673692898133,0.00019,20406.0,20402.0,0.33606497]
[1673692898387,0.1550631,20406.0,20403.0,0.19315409]
[1673692898637,0.1550631,20406.0,20403.0,0.26894543]
[1673692898905,0.1550631,20406.0,20404.0,0.19129412]
[1673692898906,0.1548731,20406.0,20404.0,0.19129412]
[1673692899620,0.1558731,20406.0,20404.0,0.19129412]
[1673692899877,0.1548731,20406.0,20405.0,0.03696861]
[1673692900121,0.1548731,20406.0,20403.0,0.07639193]
[1673692900383,0.17831804,20405.0,20404.0,0.102]
[1673692900615,0.68080095,20405.0,20404.0,0.102]
[1673692900873,0.68080095,20405.0,20399.0,0.1735122]
[1673692900874,0.890075,20405.0,20399.0,0.1735122]
[1673692901128,0.890075,20405.0,20399.0,0.28891102]
[1673692901129,0.49072595,20404.0,20399.0,0.28891102]
[1673692901386,0.78085895,20403.0,20399.0,0.11539882]
[1673692901626,0.78085895,20403.0,20397.0,1.2709]
[1673692901627,0.19072595,20402.0,20397.0,1.2709]
[1673692901887,0.19072595,20401.0,20398.0,0.14940974]
[1673692902391,0.19072595,20401.0,20399.0,0.12]
[1673692902647,0.15710034,20402.0,20398.0,0.14940974]
[1673692902945,0.005,20401.0,20398.0,0.22640974]
[1673692903172,0.005,20401.0,20398.0,0.50024831]
[1673692903441,0.005,20401.0,20400.0,0.17220311]
[1673692903984,0.1670978,20404.0,20400.0,0.17220311]
[1673692904209,0.1670978,20404.0,20401.0,0.07579134]
[1673692904696,0.1670978,20404.0,20400.0,0.17220311]
[1673692904942,0.74583695,20404.0,20400.0,0.01]
[1673692905198,0.74583695,20404.0,20398.0,0.16311534]
[1673692905199,0.78083695,20404.0,20398.0,0.16311534]
[1673692905452,0.19072595,20403.0,20401.0,0.01]
[1673692905697,0.490126,20403.0,20401.0,0.01]
[1673692906187,0.72026864,20404.0,20401.0,0.01]
[1673692906480,0.47720169,20403.0,20398.0,0.07579134]
[1673692906711,1.47103795,20402.0,20400.0,0.01]
[1673692906972,1.280312,20402.0,20400.0,0.01]
[1673692907200,0.27575137,20401.0,20397.0,0.00019]
[1673692907462,0.19072595,20400.0,20397.0,0.00019]
[1673692907992,0.68092295,20400.0,20397.0,0.00019]
[1673692908242,0.490197,20400.0,20397.0,0.00019]
[1673692908470,0.490197,20400.0,20397.0,0.12]
[1673692909250,0.490197,20400.0,20395.0,1.2274]
[1673692909490,0.16486233,20399.0,20397.0,0.12]
[1673692909745,0.005,20400.0,20397.0,0.34251931]
[1673692909983,0.005,20400.0,20398.0,0.46692375]
[1673692910266,0.005,20400.0,20397.0,0.19579134]
[1673692910267,0.14964134,20400.0,20397.0,0.07579134]
[1673692910476,0.19072595,20399.0,20397.0,0.12]
[1673692910715,0.19072595,20399.0,20393.0,0.00920819]
[1673692910716,0.68094795,20399.0,20394.0,0.19513985]
[1673692910959,0.19072595,20398.0,20394.0,0.19513985]
[1673692911455,0.19072595,20398.0,20397.0,0.12]
[1673692911720,0.3,20398.0,20397.0,0.12]
[1673692912258,0.590244,20398.0,20397.0,0.12]
[1673692912531,0.14747301,20398.0,20395.0,0.18707331]
[1673692912778,0.15347301,20398.0,20395.0,0.18707331]
[1673692913035,0.14747301,20398.0,20395.0,0.26671876]
[1673692913493,0.15347301,20398.0,20397.0,0.111]
[1673692913728,0.15347301,20398.0,20395.0,0.26671876]
[1673692913729,0.14747301,20398.0,20396.0,0.1900965]
[1673692913970,0.15347301,20398.0,20396.0,0.1900965]
[1673692914742,0.006,20398.0,20396.0,0.1900965]
[1673692914980,0.006,20398.0,20396.0,0.2771044]
[1673692915234,0.006,20398.0,20396.0,0.1900965]
[1673692915693,0.17826755,20399.0,20396.0,0.1900965]
[1673692915934,0.006,20398.0,20396.0,0.3010965]
[1673692916407,0.15581261,20398.0,20396.0,0.3010965]
[1673692916679,0.15581261,20398.0,20396.0,0.111]
[1673692917203,0.16483044,20397.0,20396.0,0.111]
[1673692917686,0.006,20398.0,20396.0,0.18961887]
[1673692917938,0.18072137,20398.0,20396.0,0.18961887]
[1673692918160,0.18243716,20397.0,20396.0,0.111]
[1673692918891,0.18243716,20397.0,20394.0,0.15114145]
[1673692919191,0.18843716,20397.0,20396.0,0.111]
[1673692919942,0.18243716,20397.0,20394.0,0.15114145]
[1673692920198,0.18843716,20397.0,20395.0,0.18044208]
[1673692920445,0.490412,20399.0,20395.0,0.18044208]
[1673692920715,0.006,20397.0,20396.0,0.32139134]
[1673692920959,0.00019,20399.0,20396.0,0.812837]
[1673692921196,0.00019,20399.0,20397.0,0.4544238]
[1673692921456,0.00019,20399.0,20398.0,0.812754]
[1673692921708,0.006,20399.0,20398.0,0.812754]
[1673692922717,0.63456601,20405.0,20398.0,0.812754]
[1673692922980,0.32559,20407.0,20399.0,0.91690294]
[1673692923244,0.18110299,20407.0,20401.0,0.980324]
[1673692923492,0.36213398,20408.0,20402.0,0.29578734]
[1673692923493,0.00019,20405.0,20402.0,0.29578734]
[1673692923747,0.00019,20405.0,20403.0,1.43035413]
[1673692923973,0.00619,20405.0,20404.0,0.319975]
[1673692924248,0.00619,20405.0,20404.0,0.710074]
[1673692924470,0.00019,20405.0,20404.0,0.710074]
[1673692924755,0.00019,20405.0,20404.0,0.71067456]
[1673692925015,0.00019,20405.0,20404.0,0.94351553]
[1673692925286,0.006,20407.0,20404.0,0.39819265]
[1673692925521,0.17757809,20406.0,20404.0,0.17821765]
[1673692925793,0.006,20405.0,20404.0,0.117]
[1673692926022,0.61443281,20405.0,20404.0,0.117]
[1673692926284,0.74056201,20405.0,20404.0,0.06421826]
[1673692926515,0.74056201,20405.0,20400.0,0.00019]
[1673692926516,1.28483898,20405.0,20400.0,0.00019]
[1673692927015,1.44739031,20405.0,20400.0,0.16054279]
[1673692927292,1.29783898,20405.0,20404.0,0.058]
[1673692927535,1.28483898,20405.0,20400.0,0.26941986]
[1673692927770,1.59883109,20405.0,20400.0,0.32741986]
[1673692928072,1.59883109,20405.0,20404.0,0.1479044]
[1673692928073,0.008,20405.0,20404.0,0.1479044]
[1673692928349,0.008,20405.0,20404.0,0.57731577]
[1673692928571,0.008,20405.0,20404.0,0.50152443]
[1673692929307,0.16432257,20408.0,20404.0,0.50152443]
[1673692929544,0.16432257,20408.0,20404.0,0.25477077]
[1673692929782,0.18802817,20407.0,20404.0,0.22369574]
[1673692930031,0.18802817,20407.0,20405.0,0.18256049]
[1673692930526,0.18802817,20407.0,20401.0,1.293]
[1673692930527,0.75201645,20407.0,20401.0,1.293]
[1673692930846,0.19072595,20406.0,20402.0,0.17949061]
[1673692931116,0.1,20405.0,20402.0,0.17949061]
[1673692931335,0.19072595,20405.0,20402.0,0.17949061]
[1673692931854,0.1,20404.0,20402.0,0.17949061]
[1673692932147,0.1,20405.0,20402.0,0.17949061]
[1673692932675,0.1,20405.0,20399.0,0.490208]
[1673692932676,0.59367426,20405.0,20399.0,0.490208]
[1673692932949,0.59367426,20405.0,20402.0,0.12]
[1673692932950,0.55285993,20404.0,20402.0,0.12]
[1673692933224,1.03506603,20404.0,20400.0,0.15525116]
[1673692933459,0.18848701,20405.0,20402.0,0.18769084]
[1673692933697,1.09812576,20406.0,20403.0,0.25283381]
[1673692933698,0.13425994,20406.0,20403.0,0.25283381]
[1673692933971,0.14448701,20408.0,20404.0,0.07579134]
[1673692934213,0.85807276,20409.0,20405.0,0.40924706]
[1673692934214,0.88287063,20409.0,20405.0,0.40924706]
[1673692934444,0.52073665,20409.0,20406.0,0.07579134]
[1673692934954,0.17073665,20409.0,20406.0,0.07579134]
[1673692935192,0.17073665,20409.0,20407.0,0.16072246]
[1673692935429,0.17073665,20409.0,20407.0,0.22689288]
[1673692935677,0.22573665,20409.0,20407.0,0.22689288]
[1673692935919,0.17073665,20409.0,20407.0,0.22689288]
[1673692936182,0.17073665,20409.0,20403.0,0.5234299]
[1673692936183,0.14448701,20408.0,20403.0,0.5234299]
[1673692936442,0.33521296,20407.0,20403.0,0.14483972]
[1673692936658,0.19072595,20406.0,20403.0,0.14334077]